fUSD/lending_fUSD_20240118
["ID","MTS","AMOUNT","RATE_DAILY","PERIOD"]
[312007703,1705543845221,-905.06,0.00021917,2]
[312007706,1705543845230,-500.0,0.00021917,2]
[312007708,1705543845239,-500.0,0.00021917,2]
[312007710,1705543845248,-510.50258106,0.00021917,2]
[312007712,1705543845257,-500.0,0.00021917,2]
[312007714,1705543845266,-515.76895728,0.00021917,2]
[312007716,1705543845275,-500.0,0.00021917,2]
[312007718,1705543845284,-500.0,0.00021917,2]
[312007720,1705543845293,-500.0,0.00021917,2]
[312007722,1705543845302,-500.0,0.00021917,2]
[312007723,1705543845311,-11302.02,0.00021917,2]
[312007724,1705543845320,-505.03819212,0.00021917,2]
[312007725,1705543845329,-526.72107216,0.00021917,2]
[312007726,1705543845338,-1361.02,0.00021917,2]
[312007727,1705543845349,-503.78080064,0.00021917,2]
[312007728,1705543845359,-627.86094367,0.00021917,2]
[312007729,1705543845368,-500.0,0.00021917,2]
[312007731,1705543845377,-500.0,0.00021917,2]
[312007733,1705543845386,-1209.51,0.00021917,2]
[312007735,1705543845395,-500.0,0.00021917,2]
[312007737,1705543845404,-500.0,0.00021917,2]
[312007739,1705543845413,-4034.91,0.00021917,2]
[312007741,1705543845422,-646.44,0.00021917,2]
[312007743,1705543845431,-500.0,0.00021917,2]
[312007745,1705543845440,-500.0,0.00021917,2]
[312007747,1705543845449,-500.0,0.00021917,2]
[312007749,1705543845458,-500.0,0.00021917,2]
[312007751,1705543845467,-1045.98,0.00021917,2]
[312007753,1705543845476,-506.59969025,0.00021917,2]
[312007755,1705543845485,-2484.71,0.00021917,2]
[312007757,1705543845494,-506.71315777,0.00021917,2]
[312007759,1705543845503,-879.92,0.00021917,2]
[312007761,1705543845512,-879.92,0.00021917,2]
[312007763,1705543845521,-879.92,0.00021917,2]
[312007771,1705543845591,-4231.9,0.00021917,2]
[312007773,1705543845600,-500.0,0.00021917,2]
[312007775,1705543845609,-500.0,0.00021917,2]
[312007777,1705543845618,-505.49577349,0.00021917,2]
[312007779,1705543845627,-834.49,0.00021917,2]
[312007781,1705543845636,-500.0,0.00021917,2]
[312007783,1705543845644,-500.0,0.00021917,2]
[312007785,1705543845653,-500.0,0.00021917,2]
[312007787,1705543845662,-1120.57,0.00021917,2]
[312007789,1705543845670,-500.0,0.00021917,2]
[312007791,1705543845680,-500.0,0.00021917,2]
[312007793,1705543845688,-546.39089993,0.00021917,2]
[312007795,1705543845697,-1187.74,0.00021917,2]
[312007797,1705543845706,-500.0,0.00021917,2]
[312007799,1705543845716,-500.0,0.00021917,2]
[312007801,1705543845724,-500.0,0.00021917,2]
[312007803,1705543845733,-500.0,0.00021917,2]
[312007805,1705543845743,-500.0,0.00021917,2]
[312007807,1705543845753,-500.0,0.00021917,2]
[312007809,1705543845762,-500.0,0.00021917,2]
[312007811,1705543845770,-505.25602105,0.00021917,2]
[312007813,1705543845779,-1286.11,0.00021917,2]
[312007815,1705543845788,-522.08,0.00021917,2]
[312007817,1705543845797,-511.96941845,0.00021917,2]
[312007819,1705543845805,-500.0,0.00021917,2]
[312007821,1705543845814,-508.33,0.00021917,2]
[312007823,1705543845826,-1311.53,0.00021917,2]
[312007825,1705543845836,-519.95985166,0.00021917,2]
[312007827,1705543845844,-519.3127202,0.00021917,2]
[312007829,1705543845854,-509.08317856,0.00021917,2]
[312007831,1705543845863,-589.29798315,0.00021917,2]
[312007833,1705543845872,-500.0,0.00021917,2]
[312007835,1705543845881,-744.41,0.00021917,2]
[312007837,1705543845890,-507.28119577,0.00021917,2]
[312007839,1705543845898,-519.26109599,0.00021917,2]
[312007840,1705543845907,-500.0,0.00021917,2]
[312007842,1705543845916,-508.24397336,0.00021917,2]
[312007844,1705543845925,-500.0,0.00021917,2]
[312007848,1705543845934,-510.50901902,0.00021917,2]
[312007851,1705543845943,-500.0,0.00021917,2]
[312007853,1705543845952,-531.74,0.00021917,2]
[312007857,1705543845961,-730.72,0.00021917,2]
[312007858,1705543845970,-512.40262159,0.00021917,2]
[312007860,1705543845979,-653.92,0.00021917,2]
[312007862,1705543845988,-3116.76,0.00021917,2]
[312007864,1705543845997,-615.52488739,0.00021917,2]
[312007866,1705543846005,-500.0,0.00021917,2]
[312007868,1705543846014,-515.42450372,0.00021917,2]
[312007871,1705543846023,-3560.03,0.00021917,2]
[312007873,1705543846032,-507.92919808,0.00021917,2]
[312007875,1705543846041,-772.51,0.00021917,2]
[312007879,1705543846050,-500.0,0.00021917,2]
[312007882,1705543846059,-500.0,0.00021917,2]
[312007884,1705543846068,-500.0,0.00021917,2]
[312007888,1705543846079,-508.99089519,0.00021917,2]
[312007892,1705543846089,-504.75577764,0.00021917,2]
[312007896,1705543846098,-533.15478734,0.00021917,2]
[312007900,1705543846107,-500.0,0.00021917,2]
[312007904,1705543846116,-269.67593391,0.00021917,2]
[312007907,1705543846125,-500.0,0.00021917,2]
[312007910,1705543846134,-328.9060057,0.00021917,2]
[312007913,1705543846143,-2915.65,0.00021917,2]
[312007917,1705543846153,-683.29,0.00021917,2]
[312007921,1705543846163,-500.0,0.00021917,2]
[312007924,1705543846172,-500.0,0.00021917,2]
[312007927,1705543846182,-539.65,0.00021917,2]
[312007928,1705543846191,-581.25212967,0.00021917,2]
[312007931,1705543846200,-500.0,0.00021917,2]
[312007934,1705543846209,-500.0,0.00021917,2]
[312007937,1705543846218,-2250.09,0.00021917,2]
[312007940,1705543846227,-500.0,0.00021917,2]
[312007943,1705543846236,-500.0,0.00021917,2]
[312007946,1705543846245,-472.6051411,0.00021917,2]
[312007949,1705543846254,-538.63,0.00021917,2]
[312007952,1705543846263,-500.0,0.00021917,2]
[312007955,1705543846273,-500.0,0.00021917,2]
[312007958,1705543846282,-500.0,0.00021917,2]
[312007961,1705543846292,-500.0,0.00021917,2]
[312007963,1705543846301,-524.18083518,0.00021917,2]
[312007965,1705543846310,-500.0,0.00021917,2]
[312007967,1705543846319,-518.70933258,0.00021917,2]
[312007969,1705543846330,-936.65,0.00021917,2]
[312007972,1705543846339,-500.0,0.00021917,2]
[312007973,1705543846350,-1327.81,0.00021917,2]
[312007975,1705543846362,-501.15225291,0.00021917,2]
[312007977,1705543846371,-500.0,0.00021917,2]
[312007979,1705543846380,-500.0,0.00021917,2]
[312007982,1705543846390,-500.6213519,0.00021917,2]
[312007984,1705543846400,-500.0,0.00021917,2]
[312007986,1705543846409,-500.0,0.00021917,2]
[312007988,1705543846418,-742.58,0.00021917,2]
[312007990,1705543846428,-511.7480204,0.00021917,2]
[312007992,1705543846438,-500.0,0.00021917,2]
[312007993,1705543846447,-525.14916116,0.00021917,2]
[312007996,1705543846456,-508.96653621,0.00021917,2]
[312007998,1705543846465,-500.0,0.00021917,2]
[312008000,1705543846474,-511.05758837,0.00021917,2]
[312008001,1705543846483,-500.0,0.00021917,2]
[312008002,1705543846493,-512.85525028,0.00021917,2]
[312008003,1705543846502,-507.01177096,0.00021917,2]
[312008004,1705543846511,-500.0,0.00021917,2]
[312008006,1705543846520,-500.0,0.00021917,2]
[312008008,1705543846530,-506.5,0.00021917,2]
[312008010,1705543846539,-500.0,0.00021917,2]
[312008012,1705543846548,-500.0,0.00021917,2]
[312008014,1705543846557,-500.0,0.00021917,2]
[312008016,1705543846566,-500.0,0.00021917,2]
[312008017,1705543846576,-500.0,0.00021917,2]
[312008018,1705543846585,-1109.85,0.00021917,2]
[312008019,1705543846595,-500.0,0.00021917,2]
[312008020,1705543846603,-508.04775347,0.00021917,2]
[312008021,1705543846613,-760.25,0.00021917,2]
[312008022,1705543846622,-507.44378042,0.00021917,2]
[312008023,1705543846631,-514.36,0.00021917,2]
[312008024,1705543846641,-556.54796268,0.00021917,2]
[312008025,1705543846650,-505.47506122,0.00021917,2]
[312008026,1705543846659,-502.14007724,0.00021917,2]
[312008027,1705543846668,-506.92156328,0.00021917,2]
[312008028,1705543846677,-500.0,0.00021917,2]
[312008029,1705543846686,-500.0,0.00021917,2]
[312008030,1705543846695,-500.0,0.00021917,2]
[312008031,1705543846704,-500.0,0.00021917,2]
[312008032,1705543846714,-500.0,0.00021917,2]
[312008033,1705543846724,-500.0,0.00021917,2]
[312008034,1705543846733,-513.18383322,0.00021917,2]
[312008035,1705543846745,-500.0,0.00021917,2]
[312008036,1705543846755,-500.0,0.00021917,2]
[312008037,1705543846764,-500.0,0.00021917,2]
[312008038,1705543846773,-500.0,0.00021917,2]
[312008039,1705543846782,-500.0,0.00021917,2]
[312008040,1705543846792,-500.0,0.00021917,2]
[312008041,1705543846801,-658.43,0.00021917,2]
[312008042,1705543846810,-500.0,0.00021917,2]
[312008043,1705543846819,-511.54517395,0.00021917,2]
[312008044,1705543846829,-500.0,0.00021917,2]
[312008045,1705543846839,-500.0,0.00021917,2]
[312008046,1705543846848,-249.32068198,0.00021917,2]
[312008047,1705543846857,-561.53609712,0.00021917,2]
[312008048,1705543846867,-585.4869718,0.00021917,2]
[312008049,1705543846876,-500.0,0.00021917,2]
[312008050,1705543846885,-500.0,0.00021917,2]
[312008051,1705543846894,-255.63625244,0.00021917,2]
[312008052,1705543846904,-500.0,0.00021917,2]
[312008053,1705543846913,-500.0,0.00021917,2]
[312008054,1705543846923,-1554.8,0.00021917,2]
[312008055,1705543846933,-500.0,0.00021917,2]
[312008056,1705543846942,-500.0,0.00021917,2]
[312008057,1705543846951,-507.18536867,0.00021917,2]
[312008058,1705543846960,-506.74574954,0.00021917,2]
[312008059,1705543846969,-518.18396936,0.00021917,2]
[312008060,1705543846979,-500.0,0.00021917,2]
[312008061,1705543846988,-500.0,0.00021917,2]
[312008062,1705543846997,-1812.06,0.00021917,2]
[312008063,1705543847006,-695.25,0.00021917,2]
[312008064,1705543847016,-500.0,0.00021917,2]
[312008065,1705543847025,-5134.61,0.00021917,2]
[312008066,1705543847034,-616.4363086,0.00021917,2]
[312008067,1705543847043,-500.0,0.00021917,2]
[312008068,1705543847053,-1792.54,0.00021917,2]
[312008069,1705543847062,-526.55910614,0.00021917,2]
[312008070,1705543847071,-512.42619069,0.00021917,2]
[312008071,1705543847080,-500.0,0.00021917,2]
[312008072,1705543847090,-528.39223896,0.00021917,2]
[312008073,1705543847099,-500.0,0.00021917,2]
[312008074,1705543847108,-500.0,0.00021917,2]
[312008075,1705543847117,-785.16,0.00021917,2]
[312008076,1705543847127,-500.0,0.00021917,2]
[312008077,1705543847136,-2422.6,0.00021917,2]
[312008078,1705543847145,-500.0,0.00021917,2]
[312008079,1705543847154,-500.0,0.00021917,2]
[312008080,1705543847164,-595.74,0.00021917,2]
[312008081,1705543847173,-505.6,0.00021917,2]
[312008082,1705543847182,-503.33797492,0.00021917,2]
[312008083,1705543847192,-500.0,0.00021917,2]
[312008084,1705543847201,-1744.29,0.00021917,2]
[312008085,1705543847211,-511.94988109,0.00021917,2]
[312008086,1705543847220,-500.0,0.00021917,2]
[312008087,1705543847230,-500.0,0.00021917,2]
[312008088,1705543847239,-500.0,0.00021917,2]
[312008089,1705543847248,-535.98,0.00021917,2]
[312008090,1705543847258,-500.0,0.00021917,2]
[312008091,1705543847267,-7622.96,0.00021917,2]
[312008092,1705543847277,-500.0,0.00021917,2]
[312008093,1705543847286,-500.0,0.00021917,2]
[312008094,1705543847296,-500.0,0.00021917,2]
[312008095,1705543847305,-638.21921375,0.00021917,2]
[312008096,1705543847314,-500.0,0.00021917,2]
[312008097,1705543847324,-500.0,0.00021917,2]
[312008098,1705543847333,-520.61841934,0.00021917,2]
[312008099,1705543847342,-500.0,0.00021917,2]
[312008100,1705543847354,-2297.42,0.00021917,2]
[312008101,1705543847363,-905.23,0.00021917,2]
[312008102,1705543847372,-631.53,0.00021917,2]
[312008103,1705543847381,-500.0,0.00021917,2]
[312008104,1705543847390,-500.20188696,0.00021917,2]
[312008105,1705543847399,-636.15444629,0.00021917,2]
[312008106,1705543847409,-500.0,0.00021917,2]
[312008107,1705543847418,-526.84,0.00021917,2]
[312008108,1705543847431,-500.0,0.00021917,2]
[312008109,1705543847441,-500.0,0.00021917,2]
[312008110,1705543847450,-500.0,0.00021917,2]
[312008111,1705543847459,-500.0,0.00021917,2]
[312008112,1705543847469,-500.0,0.00021917,2]
[312008113,1705543847478,-511.86866905,0.00021917,2]
[312008114,1705543847487,-1259.74,0.00021917,2]
[312008115,1705543847497,-500.0,0.00021917,2]
[312008116,1705543847505,-500.0,0.00021917,2]
[312008117,1705543847514,-500.0,0.00021917,2]
[312008118,1705543847524,-500.0,0.00021917,2]
[312008119,1705543847533,-500.0,0.00021917,2]
[312008120,1705543847542,-502.10146823,0.00021917,2]
[312008121,1705543847551,-531.88179773,0.00021917,2]
[312008122,1705543847560,-503.40594524,0.00021917,2]
[312008123,1705543847570,-500.0,0.00021917,2]
[312008124,1705543847579,-500.0,0.00021917,2]
[312008125,1705543847589,-500.0,0.00021917,2]
[312008126,1705543847599,-1144.73,0.00021917,2]
[312008127,1705543847608,-513.88583037,0.00021917,2]
[312008128,1705543847617,-261.87305865,0.00021917,2]
[312008129,1705543847626,-500.0,0.00021917,2]
[312008130,1705543847635,-500.0,0.00021917,2]
[312008131,1705543847644,-250.0,0.00021918,2]
[312008132,1705543847654,-216.43242103,0.00021954,2]
[312008133,1705543847663,-155.4915277,0.00022,2]
[312008134,1705543847674,-450.0,0.00022,3]
[312008135,1705543847683,-207.82039875,0.00022,2]
[312008136,1705543847693,-164.89,0.00022054,2]
[312008137,1705543847704,-544.71994516,0.00022055,2]
[312008138,1705543847714,-198.29067422,0.00022091,2]
[312008139,1705543847724,-9327.60817688,0.00022091,2]
[312008140,1705543847733,-216.43242103,0.00022091,2]
[312008141,1705543847742,-158.03,0.00022091,2]
[312008142,1705543847751,-151.75,0.00022106,2]
[312008143,1705543847761,-150.0,0.00022106,2]
[312008144,1705543847770,-151.13,0.00022132,2]
[312008145,1705543847779,-150.0,0.00022132,2]
[312008146,1705543847789,-150.0,0.00022132,2]
[312008147,1705543847799,-150.0,0.00022132,2]
[312008148,1705543847809,-150.0,0.00022132,2]
[312008149,1705543847820,-152.57,0.00022132,2]
[312008150,1705543847831,-175.10328279,0.00022143,2]
[312008151,1705543847840,-282.16161518,0.00022154,2]
[312008152,1705543847851,-9327.60817687,0.00022165,2]
[312008153,1705543847861,-952.09,0.00022169,2]
[312008154,1705543847872,-310.50049061,0.00022188,2]
[312008155,1705543847882,-150.05110125,0.0002219,2]
[312008156,1705543847893,-879.92,0.0002219,2]
[312008157,1705543847903,-500.0,0.00022191,2]
[312008158,1705543847913,-500.0,0.00022191,2]
[312008159,1705543847925,-535.44047407,0.00022191,2]
[312008160,1705543847936,-164.40214157,0.00022191,2]
[312008161,1705543847946,-399.81407838,0.00022191,2]
[312008162,1705543847956,-500.0,0.00022191,2]
[312008163,1705543847965,-161.10210102,0.00022191,2]
[312008164,1705543847974,-511.54305181,0.00022191,2]
[312008165,1705543847983,-500.0,0.00022191,2]
[312008166,1705543847993,-512.26670116,0.00022191,2]
[312008167,1705543848002,-500.0,0.00022191,2]
[312008168,1705543848011,-431.08712151,0.00022191,2]
[312008169,1705543848021,-335.57374084,0.00022191,2]
[312008170,1705543848031,-500.0,0.00022191,2]
[312008171,1705543848040,-500.0,0.00022191,2]
[312008172,1705543848049,-302.93094957,0.00022191,2]
[312008173,1705543848059,-509.57093404,0.00022191,2]
[312008174,1705543848068,-154.69884067,0.00022191,2]
[312008175,1705543848078,-509.43488989,0.00022191,2]
[312008176,1705543848088,-177.8498946,0.00022191,2]
[312008177,1705543848097,-273.35121785,0.00022191,2]
[312008178,1705543848106,-308.41867228,0.00022191,2]
[312008179,1705543848117,-616.08035136,0.00022191,2]
[312008180,1705543848126,-550.0,0.00022191,2]
[312008181,1705543848135,-508.69120285,0.00022191,2]
[312008182,1705543848145,-500.0,0.00022191,2]
[312008183,1705543848154,-500.0,0.00022191,2]
[312008184,1705543848164,-395.74243889,0.00022191,2]
[312008185,1705543848173,-584.83039225,0.00022191,2]
[312008186,1705543848182,-515.70140581,0.00022191,2]
[312008187,1705543848191,-500.0,0.00022191,2]
[312008188,1705543848201,-355.90372113,0.00022191,2]
[312008189,1705543848210,-500.0,0.00022191,2]
[312008190,1705543848221,-469.31700062,0.00022191,2]
[312008191,1705543848230,-511.22730218,0.00022191,2]
[312008192,1705543848240,-512.46638318,0.00022191,2]
[312008193,1705543848250,-500.0,0.00022191,2]
[312008194,1705543848259,-500.0,0.00022191,2]
[312008195,1705543848269,-394.32882582,0.00022191,2]
[312008196,1705543848278,-513.65088748,0.00022191,2]
[312008197,1705543848287,-279.81490168,0.00022191,2]
[312008198,1705543848297,-500.0,0.00022191,2]
[312008199,1705543848306,-500.0,0.00022191,2]
[312008200,1705543848316,-500.0,0.00022191,2]
[312008201,1705543848326,-500.0,0.00022191,2]
[312008202,1705543848336,-500.0,0.00022191,2]
[312008203,1705543848345,-500.0,0.00022191,2]
[312008204,1705543848358,-500.0,0.00022191,2]
[312008205,1705543848368,-507.08995916,0.00022191,2]
[312008206,1705543848377,-500.0,0.00022191,2]
[312008207,1705543848386,-509.49071539,0.00022191,2]
[312008208,1705543848397,-500.0,0.00022191,2]
[312008209,1705543848406,-541.66991906,0.00022191,2]
[312008210,1705543848415,-575.94238955,0.00022191,2]
[312008211,1705543848425,-513.89730793,0.00022191,2]
[312008212,1705543848436,-500.0004376,0.00022191,2]
[312008213,1705543848445,-500.0,0.00022191,2]
[312008214,1705543848454,-500.0,0.00022191,2]
[312008215,1705543848464,-500.0,0.00022191,2]
[312008216,1705543848473,-500.0,0.00022191,2]
[312008217,1705543848482,-500.0,0.00022191,2]
[312008218,1705543848491,-500.0,0.00022191,2]
[312008219,1705543848501,-508.41587338,0.00022191,2]
[312008220,1705543848510,-509.38646818,0.00022191,2]
[312008221,1705543848519,-509.57710824,0.00022191,2]
[312008222,1705543848529,-500.0,0.00022191,2]
[312008223,1705543848538,-500.0,0.00022191,2]
[312008224,1705543848548,-500.0,0.00022191,2]
[312008225,1705543848558,-500.0,0.00022191,2]
[312008226,1705543848567,-500.0,0.00022191,2]
[312008227,1705543848577,-500.0,0.00022191,2]
[312008228,1705543848586,-512.25560821,0.00022191,2]
[312008229,1705543848595,-500.0,0.00022191,2]
[312008230,1705543848604,-500.0,0.00022191,2]
[312008231,1705543848614,-579.40562763,0.00022191,2]
[312008232,1705543848623,-1045.55,0.00022191,2]
[312008233,1705543848632,-500.0,0.00022191,2]
[312008234,1705543848642,-440.958678,0.00022191,2]
[312008235,1705543848652,-500.0,0.00022191,2]
[312008236,1705543848661,-500.0,0.00022191,2]
[312008237,1705543848670,-500.0,0.00022191,2]
[312008238,1705543848679,-500.0,0.00022191,2]
[312008239,1705543848690,-150.26420318,0.00022191,2]
[312008240,1705543848699,-500.0,0.00022191,2]
[312008241,1705543848709,-500.0,0.00022191,2]
[312008242,1705543848720,-500.0,0.00022191,2]
[312008243,1705543848732,-500.0,0.00022191,2]
[312008244,1705543848741,-500.0,0.00022191,2]
[312008245,1705543848752,-500.0,0.00022191,2]
[312008246,1705543848762,-500.0,0.00022191,2]
[312008247,1705543848771,-500.0,0.00022191,2]
[312008248,1705543848780,-500.0,0.00022191,2]
[312008249,1705543848789,-500.0,0.00022191,2]
[312008250,1705543848798,-589.50128306,0.00022191,2]
[312008251,1705543848808,-527.26969905,0.00022191,2]
[312008252,1705543848818,-500.0,0.00022191,2]
[312008253,1705543848827,-514.72406096,0.00022191,2]
[312008254,1705543848837,-500.0,0.00022191,2]
[312008255,1705543848846,-500.0,0.00022191,2]
[312008256,1705543848855,-500.0,0.00022191,2]
[312008257,1705543848865,-510.39895951,0.00022191,2]
[312008258,1705543848876,-500.0,0.00022191,2]
[312008259,1705543848885,-500.0,0.00022191,2]
[312008260,1705543848896,-500.0,0.00022191,2]
[312008261,1705543848906,-500.0,0.00022191,2]
[312008262,1705543848918,-500.0,0.00022191,2]
[312008263,1705543848928,-500.0,0.00022191,2]
[312008264,1705543848939,-218.56,0.00022191,2]
[312008265,1705543848950,-500.0,0.00022191,2]
[312008266,1705543848959,-500.0,0.00022191,2]
[312008267,1705543848969,-517.47516842,0.00022191,2]
[312008268,1705543848978,-485.23319014,0.00022191,2]
[312008269,1705543848987,-515.67692405,0.00022191,2]
[312008270,1705543848997,-500.0,0.00022191,2]
[312008271,1705543849006,-517.22598031,0.00022191,2]
[312008272,1705543849015,-500.0,0.00022191,2]
[312008273,1705543849024,-513.54794095,0.00022191,2]
[312008274,1705543849033,-517.49771715,0.00022191,2]
[312008275,1705543849043,-500.0,0.00022191,2]
[312008276,1705543849054,-573.59831023,0.00022191,2]
[312008277,1705543849065,-572.87433827,0.00022191,2]
[312008278,1705543849077,-521.48284466,0.00022191,2]
[312008279,1705543849088,-743.5,0.00022191,2]
[312008280,1705543849098,-508.43174076,0.00022191,2]
[312008281,1705543849107,-512.02245807,0.00022191,2]
[312008282,1705543849117,-500.0,0.00022191,2]
[312008283,1705543849127,-500.0,0.00022191,2]
[312008284,1705543849137,-500.0,0.00022191,2]
[312008285,1705543849147,-252.82259553,0.00022191,7]
[312008286,1705543849157,-491.45039241,0.00022191,2]
[312008287,1705543849166,-508.93043359,0.00022191,2]
[312008288,1705543849176,-500.0,0.00022191,2]
[312008289,1705543849186,-640.6,0.00022191,2]
[312008290,1705543849195,-512.58326182,0.00022191,2]
[312008291,1705543849205,-500.0,0.00022191,2]
[312008292,1705543849214,-500.0,0.00022191,2]
[312008293,1705543849224,-500.0,0.00022191,2]
[312008294,1705543849234,-559.68286691,0.00022191,2]
[312008295,1705543849243,-515.71816769,0.00022191,2]
[312008296,1705543849253,-500.0,0.00022191,2]
[312008297,1705543849263,-500.0,0.00022191,2]
[312008298,1705543849272,-509.61858926,0.00022191,2]
[312008299,1705543849282,-500.0,0.00022191,2]
[312008300,1705543849292,-452.61010878,0.00022191,2]
[312008301,1705543849302,-492.52685547,0.00022191,2]
[312008302,1705543849313,-500.0,0.00022191,2]
[312008303,1705543849324,-500.0,0.00022191,2]
[312008304,1705543849334,-500.0,0.00022191,2]
[312008305,1705543849344,-585.69119346,0.00022191,2]
[312008306,1705543849355,-500.0,0.00022191,2]
[312008307,1705543849364,-500.0,0.00022191,2]
[312008308,1705543849373,-520.69647872,0.00022191,2]
[312008309,1705543849384,-519.40323682,0.00022191,2]
[312008310,1705543849394,-150.0,0.00022191,2]
[312008311,1705543849405,-500.0,0.00022191,2]
[312008312,1705543849414,-520.80324181,0.00022191,2]
[312008313,1705543849424,-500.0,0.00022191,2]
[312008314,1705543849434,-509.16124062,0.00022191,2]
[312008315,1705543849444,-507.78264818,0.00022191,2]
[312008316,1705543849453,-500.0,0.00022191,2]
[312008317,1705543849463,-500.0,0.00022191,2]
[312008318,1705543849473,-515.94265347,0.00022191,2]
[312008319,1705543849482,-500.0,0.00022191,2]
[312008320,1705543849492,-500.0,0.00022191,2]
[312008321,1705543849501,-500.0,0.00022191,2]
[312008322,1705543849511,-500.0,0.00022191,2]
[312008323,1705543849522,-500.0,0.00022191,2]
[312008324,1705543849531,-153.25125681,0.00022191,2]
[312008325,1705543849540,-500.0,0.00022191,2]
[312008326,1705543849550,-500.0,0.00022191,2]
[312008327,1705543849560,-508.64015039,0.00022191,2]
[312008328,1705543849570,-199.71040019,0.00022191,2]
[312008329,1705543849581,-500.0,0.00022191,2]
[312008330,1705543849591,-500.0,0.00022191,2]
[312008331,1705543849600,-500.0,0.00022191,2]
[312008332,1705543849610,-500.0,0.00022191,2]
[312008333,1705543849620,-500.0,0.00022191,2]
[312008334,1705543849629,-623.18879874,0.00022191,2]
[312008335,1705543849639,-500.0,0.00022191,2]
[312008336,1705543849648,-520.6359275,0.00022191,2]
[312008337,1705543849658,-684.11,0.00022191,2]
[312008338,1705543849667,-500.0,0.00022191,2]
[312008339,1705543849677,-500.0,0.00022191,2]
[312008340,1705543849687,-500.0,0.00022191,2]
[312008341,1705543849698,-500.0,0.00022191,2]
[312008342,1705543849708,-517.84540609,0.00022191,2]
[312008343,1705543849717,-152.76555194,0.00022191,2]
[312008344,1705543849727,-560.50968524,0.00022191,2]
[312008345,1705543849737,-500.0,0.00022191,2]
[312008346,1705543849747,-500.0,0.00022191,2]
[312008347,1705543849756,-318.5548319,0.00022191,2]
[312008348,1705543849766,-500.0,0.00022191,2]
[312008349,1705543849775,-500.0,0.00022191,2]
[312008350,1705543849785,-324.16449867,0.00022191,2]
[312008351,1705543849797,-500.0,0.00022191,2]
[312008352,1705543849807,-499.4630638,0.00022191,2]
[312008353,1705543849816,-500.0,0.00022191,2]
[312008354,1705543849827,-500.0,0.00022191,2]
[312008355,1705543849837,-532.52277216,0.00022191,2]
[312008356,1705543849847,-500.0,0.00022191,2]
[312008357,1705543849857,-615.04,0.00022191,2]
[312008358,1705543849867,-500.0,0.00022191,2]
[312008359,1705543849876,-513.4273073,0.00022191,2]
[312008360,1705543849885,-500.0,0.00022191,2]
[312008361,1705543849895,-553.25944101,0.00022191,2]
[312008362,1705543849904,-528.55100241,0.00022191,2]
[312008363,1705543849914,-360.54577063,0.00022191,2]
[312008364,1705543849924,-541.93039254,0.00022191,2]
[312008365,1705543849934,-443.234541,0.00022191,2]
[312008366,1705543849943,-500.0,0.00022191,2]
[312008367,1705543849953,-506.73450381,0.00022191,2]
[312008368,1705543850164,-500.0,0.00022191,2]
[312008369,1705543850174,-500.0,0.00022191,2]
[312008370,1705543850183,-476.12699389,0.00022191,2]
[312008371,1705543850193,-526.84767122,0.00022191,2]
[312008372,1705543850203,-500.0,0.00022191,2]
[312008373,1705543850212,-511.88232896,0.00022191,2]
[312008374,1705543850222,-514.63308449,0.00022191,2]
[312008375,1705543850232,-500.0,0.00022191,2]